{"text_format":"3","workbook":"xlsx","n_sheets":4,"sheets":["Instrumentpanel","Budget","Installation","diagramdata"],"not_rendered":{"charts":2,"images":1,"defined_names":43},"read":"whole","date_system":"1900"}

{"sheet":"Instrumentpanel","index":0,"n_rows":13,"n_cols":14,"rows_kept":13,"merged":[[2,0,4,2],[6,0,8,2],[10,0,12,2]]}
[{"$nulls":13},{"$f":"Budgetnamn&\" INTERAKTIV BUDGET\"","v":"FAMILJEN JOHANSSON 2012 INTERAKTIV BUDGET"}]
[]
[{"$f":"diagramdata!C38","v":{"v":4000,"d":"4,000 kr"}}]
[]
[{"$nulls":3},"inkomst"]
[]
[{"$f":"diagramdata!C39","v":{"v":5933,"d":"5,933 kr"}}]
[]
[{"$nulls":3},"utgifter"]
[]
[{"$f":"diagramdata!D40&diagramdata!C40& \" kr\"","v":"-1933 kr"}]
[]
[{"$nulls":3},"kassaflöde"]

{"sheet":"Budget","index":1,"n_rows":131,"n_cols":16,"rows_kept":131,"merged":[[18,1,18,13],[27,1,27,13],[36,1,36,13],[45,1,45,13],[54,1,54,13],[61,1,61,13],[68,1,68,13],[75,1,75,13],[82,1,82,13],[89,1,89,13],[96,1,96,13],[103,1,103,13],[110,1,110,13],[117,1,117,13],[124,1,124,13]]}
[null,null,"jan","feb","mar","apr","maj","jun","jul","aug","sep","okt","nov","dec","år","medel"]
[]
[]
[]
[null,"Startsaldo",1000]
[null,"Totalinkomst",{"$f":"SUM(tblInkomst[jan])","v":4222},{"$f":"SUM(tblInkomst[feb])","v":9033},{"$f":"SUM(tblInkomst[mar])","v":4000},{"$f":"SUM(tblInkomst[apr])","v":4045},{"$f":"SUM(tblInkomst[maj])","v":9000},{"$f":"SUM(tblInkomst[jun])","v":1525},{"$f":"SUM(tblInkomst[jul])","v":1500},{"$f":"SUM(tblInkomst[aug])","v":6500},{"$f":"SUM(tblInkomst[sep])","v":4000},{"$f":"SUM(tblInkomst[okt])","v":4000},{"$f":"SUM(tblInkomst[nov])","v":9000},{"$f":"SUM(tblInkomst[dec])","v":4000},{"$f":"SUM(tblInkomst[år])","v":60825},{"$f":"O6/12","v":{"v":5068.75,"d":"5069"}}]
[null,"Totala utgifter",{"$f":"SUM(tblUtgiftskategori_01[jan],tblUtgiftskategori_02[jan],tblUtgiftskategori_03[jan],tblUtgiftskategori_04[jan],tblUtgiftskategori_05[jan],tblUtgiftskategori_06[jan],tblUtgiftskategori_07[jan],tblUtgiftskategori_08[jan],tblUtgiftskategori_09[jan],tblUtgiftskategori_10[jan],tblUtgiftskategori_11[jan],tblUtgiftskategori_12[jan],tblUtgiftskategori_13[jan],tblUtgiftskategori_14[jan],tblUtgiftskategori_15[jan])","v":7936},{"$f":"SUM(tblUtgiftskategori_01[feb],tblUtgiftskategori_02[feb],tblUtgiftskategori_03[feb],tblUtgiftskategori_04[feb],tblUtgiftskategori_05[feb],tblUtgiftskategori_06[feb],tblUtgiftskategori_07[feb],tblUtgiftskategori_08[feb],tblUtgiftskategori_09[feb],tblUtgiftskategori_10[feb],tblUtgiftskategori_11[feb],tblUtgiftskategori_12[feb],tblUtgiftskategori_13[feb],tblUtgiftskategori_14[feb],tblUtgiftskategori_15[feb])","v":5243},{"$f":"SUM(tblUtgiftskategori_01[mar],tblUtgiftskategori_02[mar],tblUtgiftskategori_03[mar],tblUtgiftskategori_04[mar],tblUtgiftskategori_05[mar],tblUtgiftskategori_06[mar],tblUtgiftskategori_07[mar],tblUtgiftskategori_08[mar],tblUtgiftskategori_09[mar],tblUtgiftskategori_10[mar],tblUtgiftskategori_11[mar],tblUtgiftskategori_12[mar],tblUtgiftskategori_13[mar],tblUtgiftskategori_14[mar],tblUtgiftskategori_15[mar])","v":5933},{"$f":"SUM(tblUtgiftskategori_01[apr],tblUtgiftskategori_02[apr],tblUtgiftskategori_03[apr],tblUtgiftskategori_04[apr],tblUtgiftskategori_05[apr],tblUtgiftskategori_06[apr],tblUtgiftskategori_07[apr],tblUtgiftskategori_08[apr],tblUtgiftskategori_09[apr],tblUtgiftskategori_10[apr],tblUtgiftskategori_11[apr],tblUtgiftskategori_12[apr],tblUtgiftskategori_13[apr],tblUtgiftskategori_14[apr],tblUtgiftskategori_15[apr])","v":5858},{"$f":"SUM(tblUtgiftskategori_01[maj],tblUtgiftskategori_02[maj],tblUtgiftskategori_03[maj],tblUtgiftskategori_04[maj],tblUtgiftskategori_05[maj],tblUtgiftskategori_06[maj],tblUtgiftskategori_07[maj],tblUtgiftskategori_08[maj],tblUtgiftskategori_09[maj],tblUtgiftskategori_10[maj],tblUtgiftskategori_11[maj],tblUtgiftskategori_12[maj],tblUtgiftskategori_13[maj],tblUtgiftskategori_14[maj],tblUtgiftskategori_15[maj])","v":5468},{"$f":"SUM(tblUtgiftskategori_01[jun],tblUtgiftskategori_02[jun],tblUtgiftskategori_03[jun],tblUtgiftskategori_04[jun],tblUtgiftskategori_05[jun],tblUtgiftskategori_06[jun],tblUtgiftskategori_07[jun],tblUtgiftskategori_08[jun],tblUtgiftskategori_09[jun],tblUtgiftskategori_10[jun],tblUtgiftskategori_11[jun],tblUtgiftskategori_12[jun],tblUtgiftskategori_13[jun],tblUtgiftskategori_14[jun],tblUtgiftskategori_15[jun])","v":5118},{"$f":"SUM(tblUtgiftskategori_01[jul],tblUtgiftskategori_02[jul],tblUtgiftskategori_03[jul],tblUtgiftskategori_04[jul],tblUtgiftskategori_05[jul],tblUtgiftskategori_06[jul],tblUtgiftskategori_07[jul],tblUtgiftskategori_08[jul],tblUtgiftskategori_09[jul],tblUtgiftskategori_10[jul],tblUtgiftskategori_11[jul],tblUtgiftskategori_12[jul],tblUtgiftskategori_13[jul],tblUtgiftskategori_14[jul],tblUtgiftskategori_15[jul])","v":5743},{"$f":"SUM(tblUtgiftskategori_01[aug],tblUtgiftskategori_02[aug],tblUtgiftskategori_03[aug],tblUtgiftskategori_04[aug],tblUtgiftskategori_05[aug],tblUtgiftskategori_06[aug],tblUtgiftskategori_07[aug],tblUtgiftskategori_08[aug],tblUtgiftskategori_09[aug],tblUtgiftskategori_10[aug],tblUtgiftskategori_11[aug],tblUtgiftskategori_12[aug],tblUtgiftskategori_13[aug],tblUtgiftskategori_14[aug],tblUtgiftskategori_15[aug])","v":5353},{"$f":"SUM(tblUtgiftskategori_01[sep],tblUtgiftskategori_02[sep],tblUtgiftskategori_03[sep],tblUtgiftskategori_04[sep],tblUtgiftskategori_05[sep],tblUtgiftskategori_06[sep],tblUtgiftskategori_07[sep],tblUtgiftskategori_08[sep],tblUtgiftskategori_09[sep],tblUtgiftskategori_10[sep],tblUtgiftskategori_11[sep],tblUtgiftskategori_12[sep],tblUtgiftskategori_13[sep],tblUtgiftskategori_14[sep],tblUtgiftskategori_15[sep])","v":5983},{"$f":"SUM(tblUtgiftskategori_01[okt],tblUtgiftskategori_02[okt],tblUtgiftskategori_03[okt],tblUtgiftskategori_04[okt],tblUtgiftskategori_05[okt],tblUtgiftskategori_06[okt],tblUtgiftskategori_07[okt],tblUtgiftskategori_08[okt],tblUtgiftskategori_09[okt],tblUtgiftskategori_10[okt],tblUtgiftskategori_11[okt],tblUtgiftskategori_12[okt],tblUtgiftskategori_13[okt],tblUtgiftskategori_14[okt],tblUtgiftskategori_15[okt])","v":5943},{"$f":"SUM(tblUtgiftskategori_01[nov],tblUtgiftskategori_02[nov],tblUtgiftskategori_03[nov],tblUtgiftskategori_04[nov],tblUtgiftskategori_05[nov],tblUtgiftskategori_06[nov],tblUtgiftskategori_07[nov],tblUtgiftskategori_08[nov],tblUtgiftskategori_09[nov],tblUtgiftskategori_10[nov],tblUtgiftskategori_11[nov],tblUtgiftskategori_12[nov],tblUtgiftskategori_13[nov],tblUtgiftskategori_14[nov],tblUtgiftskategori_15[nov])","v":5058},{"$f":"SUM(tblUtgiftskategori_01[dec],tblUtgiftskategori_02[dec],tblUtgiftskategori_03[dec],tblUtgiftskategori_04[dec],tblUtgiftskategori_05[dec],tblUtgiftskategori_06[dec],tblUtgiftskategori_07[dec],tblUtgiftskategori_08[dec],tblUtgiftskategori_09[dec],tblUtgiftskategori_10[dec],tblUtgiftskategori_11[dec],tblUtgiftskategori_12[dec],tblUtgiftskategori_13[dec],tblUtgiftskategori_14[dec],tblUtgiftskategori_15[dec])","v":4958},{"$f":"SUM(tblUtgiftskategori_01[år],tblUtgiftskategori_02[år],tblUtgiftskategori_03[år],tblUtgiftskategori_04[år],tblUtgiftskategori_05[år],tblUtgiftskategori_06[år],tblUtgiftskategori_07[år],tblUtgiftskategori_08[år],tblUtgiftskategori_09[år],tblUtgiftskategori_10[år],tblUtgiftskategori_11[år],tblUtgiftskategori_12[år],tblUtgiftskategori_13[år],tblUtgiftskategori_14[år],tblUtgiftskategori_15[år],)","v":68594},{"$f":"O7/12","v":{"v":5716.166666666667,"d":"5716"}}]
[null,"Nettoinkomst",{"$f":"C6-C7","v":-3714},{"$f":"D6-D7","v":3790},-1933,-1813,3532,-3593,-4243,1147,-1983,-1943,3942,-958,-7769,{"$f":"O8/12","v":{"v":-647.4166666666666,"d":"-647"}}]
[null,"TOTALT KASSAFLÖDE",{"$f":"C5+C6-C7","v":-2714},{"$f":"C9+D6-D7","v":1076},{"$f":"D9+E6-E7","v":-857},-2670,862,-2731,-6974,-5827,-7810,-9753,-5811,-6769]
[]
[]
[null,"inkomst"]
[null,"löner",4000,4000,4000,4000,4000,1000,1000,1000,4000,4000,4000,4000,{"$f":"SUM(tblInkomst[[#This Row],[jan]:[dec]])","v":39000},{"$f":"tblInkomst[[#This Row],[år]]/12","v":3250}]
[null,"Ränteintäkter",222,33,null,45,null,25,{"$nulls":6},{"$f":"SUM(tblInkomst[[#This Row],[jan]:[dec]])","v":325},{"$f":"tblInkomst[[#This Row],[år]]/12","v":{"v":27.083333333333332,"d":"27"}}]
[null,"utdelningar",null,5000,null,null,5000,null,null,5000,null,null,5000,null,{"$f":"SUM(tblInkomst[[#This Row],[jan]:[dec]])","v":20000},{"$f":"tblInkomst[[#This Row],[år]]/12","v":{"v":1666.6666666666667,"d":"1667"}}]
[null,"bidrag/ersättning",{"$nulls":5},500,500,500,{"$nulls":4},{"$f":"SUM(tblInkomst[[#This Row],[jan]:[dec]])","v":1500},{"$f":"tblInkomst[[#This Row],[år]]/12","v":125}]
[null,"Övrigt",{"$nulls":12},{"$f":"SUM(tblInkomst[[#This Row],[jan]:[dec]])","v":0},{"$f":"tblInkomst[[#This Row],[år]]/12","v":0}]
[null,"TOTALINKOMST",{"$f":"SUM(tblInkomst[jan])","v":4222},{"$f":"SUM(tblInkomst[feb])","v":9033},{"$f":"SUM(tblInkomst[mar])","v":4000},{"$f":"SUM(tblInkomst[apr])","v":4045},{"$f":"SUM(tblInkomst[maj])","v":9000},{"$f":"SUM(tblInkomst[jun])","v":1525},{"$f":"SUM(tblInkomst[jul])","v":1500},{"$f":"SUM(tblInkomst[aug])","v":6500},{"$f":"SUM(tblInkomst[sep])","v":4000},{"$f":"SUM(tblInkomst[okt])","v":4000},{"$f":"SUM(tblInkomst[nov])","v":9000},{"$f":"SUM(tblInkomst[dec])","v":4000},{"$f":"SUM(tblInkomst[år])","v":60825},{"$f":"tblInkomst[[#Totals],[år]]/12","v":{"v":5068.75,"d":"5069"}}]
[]
[]
[null,"hushåll"]
[null,"Lån/hyra",850,850,850,850,850,850,850,850,850,850,900,900,{"$f":"SUM(tblUtgiftskategori_01[[#This Row],[jan]:[dec]])","v":10300},{"$f":"tblUtgiftskategori_01[[#This Row],[år]]/12","v":{"v":858.3333333333334,"d":"858"}}]
[null,"El",200,200,175,150,150,175,225,275,200,150,150,150,{"$f":"SUM(tblUtgiftskategori_01[[#This Row],[jan]:[dec]])","v":2200},{"$f":"tblUtgiftskategori_01[[#This Row],[år]]/12","v":{"v":183.33333333333334,"d":"183"}}]
[null,"Telefon",50,50,100,100,50,50,100,100,50,50,50,50,{"$f":"SUM(tblUtgiftskategori_01[[#This Row],[jan]:[dec]])","v":800},{"$f":"tblUtgiftskategori_01[[#This Row],[år]]/12","v":{"v":66.66666666666667,"d":"67"}}]
[null,"Kabel/satellit",69,69,69,69,69,69,69,69,69,69,69,69,{"$f":"SUM(tblUtgiftskategori_01[[#This Row],[jan]:[dec]])","v":828},{"$f":"tblUtgiftskategori_01[[#This Row],[år]]/12","v":69}]
[null,"Internet",39,39,39,39,39,39,39,39,39,39,39,39,{"$f":"SUM(tblUtgiftskategori_01[[#This Row],[jan]:[dec]])","v":468},{"$f":"tblUtgiftskategori_01[[#This Row],[år]]/12","v":39}]
[null,{"$f":"UPPER(\"Summa \" & B21)","v":"SUMMA HUSHÅLL"},{"$f":"SUM(tblUtgiftskategori_01[jan])","v":1208},{"$f":"SUM(tblUtgiftskategori_01[feb])","v":1208},{"$f":"SUM(tblUtgiftskategori_01[mar])","v":1233},{"$f":"SUM(tblUtgiftskategori_01[apr])","v":1208},{"$f":"SUM(tblUtgiftskategori_01[maj])","v":1158},{"$f":"SUM(tblUtgiftskategori_01[jun])","v":1183},{"$f":"SUM(tblUtgiftskategori_01[jul])","v":1283},{"$f":"SUM(tblUtgiftskategori_01[aug])","v":1333},{"$f":"SUM(tblUtgiftskategori_01[sep])","v":1208},{"$f":"SUM(tblUtgiftskategori_01[okt])","v":1158},{"$f":"SUM(tblUtgiftskategori_01[nov])","v":1208},{"$f":"SUM(tblUtgiftskategori_01[dec])","v":1208},{"$f":"SUM(tblUtgiftskategori_01[år])","v":14596},{"$f":"tblUtgiftskategori_01[[#Totals],[år]]/12","v":{"v":1216.3333333333333,"d":"1216"}}]
[]
[]
[null,"vardag"]
[null,"Matvaror",345,250,200,400,350,250,400,350,250,400,350,250,{"$f":"SUM(tblUtgiftskategori_02[[#This Row],[jan]:[dec]])","v":3795},{"$f":"tblUtgiftskategori_02[[#This Row],[år]]/12","v":{"v":316.25,"d":"316"}}]
[null,"Kläder",300,null,null,300,null,null,300,null,null,300,null,null,{"$f":"SUM(tblUtgiftskategori_02[[#This Row],[jan]:[dec]])","v":1200},{"$f":"tblUtgiftskategori_02[[#This Row],[år]]/12","v":100}]
[null,"Middag/äta ute",125,125,300,125,125,200,125,125,125,125,125,125,{"$f":"SUM(tblUtgiftskategori_02[[#This Row],[jan]:[dec]])","v":1750},{"$f":"tblUtgiftskategori_02[[#This Row],[år]]/12","v":{"v":145.83333333333334,"d":"146"}}]
[null,"Frisör",25,null,50,null,25,null,50,null,25,null,100,null,{"$f":"SUM(tblUtgiftskategori_02[[#This Row],[jan]:[dec]])","v":275},{"$f":"tblUtgiftskategori_02[[#This Row],[år]]/12","v":{"v":22.916666666666668,"d":"23"}}]
[null,"Övrigt",{"$nulls":12},{"$f":"SUM(tblUtgiftskategori_02[[#This Row],[jan]:[dec]])","v":0},{"$f":"tblUtgiftskategori_02[[#This Row],[år]]/12","v":0}]
[null,{"$f":"UPPER(\"Summa \" & B30)","v":"SUMMA VARDAG"},{"$f":"SUM(tblUtgiftskategori_02[jan])","v":795},{"$f":"SUM(tblUtgiftskategori_02[feb])","v":375},{"$f":"SUM(tblUtgiftskategori_02[mar])","v":550},{"$f":"SUM(tblUtgiftskategori_02[apr])","v":825},{"$f":"SUM(tblUtgiftskategori_02[maj])","v":500},{"$f":"SUM(tblUtgiftskategori_02[jun])","v":450},{"$f":"SUM(tblUtgiftskategori_02[jul])","v":875},{"$f":"SUM(tblUtgiftskategori_02[aug])","v":475},{"$f":"SUM(tblUtgiftskategori_02[sep])","v":400},{"$f":"SUM(tblUtgiftskategori_02[okt])","v":825},{"$f":"SUM(tblUtgiftskategori_02[nov])","v":575},{"$f":"SUM(tblUtgiftskategori_02[dec])","v":375},{"$f":"SUM(tblUtgiftskategori_02[år])","v":7020},{"$f":"tblUtgiftskategori_02[[#Totals],[år]]/12","v":585}]
[]
[]
[null,"barn"]
[null,"Skolmaterial",123,null,100,{"$nulls":4},345,{"$nulls":4},{"$f":"SUM(tblUtgiftskategori_03[[#This Row],[jan]:[dec]])","v":568},{"$f":"tblUtgiftskategori_03[[#This Row],[år]]/12","v":{"v":47.333333333333336,"d":"47"}}]
[null,"Kläder",null,100,null,null,100,{"$nulls":3},100,null,null,100,{"$f":"SUM(tblUtgiftskategori_03[[#This Row],[jan]:[dec]])","v":400},{"$f":"tblUtgiftskategori_03[[#This Row],[år]]/12","v":{"v":33.333333333333336,"d":"33"}}]
[null,"Skollunch",50,50,50,50,50,50,null,null,50,50,50,50,{"$f":"SUM(tblUtgiftskategori_03[[#This Row],[jan]:[dec]])","v":500},{"$f":"tblUtgiftskategori_03[[#This Row],[år]]/12","v":{"v":41.666666666666664,"d":"42"}}]
[null,"Läkemedel",200,200,200,200,200,200,200,200,200,200,200,200,{"$f":"SUM(tblUtgiftskategori_03[[#This Row],[jan]:[dec]])","v":2400},{"$f":"tblUtgiftskategori_03[[#This Row],[år]]/12","v":200}]
[null,"Övrigt",2000,150,{"$nulls":3},200,{"$nulls":3},100,null,null,{"$f":"SUM(tblUtgiftskategori_03[[#This Row],[jan]:[dec]])","v":2450},{"$f":"tblUtgiftskategori_03[[#This Row],[år]]/12","v":{"v":204.16666666666666,"d":"204"}}]
[null,{"$f":"UPPER(\"Summa \" & B39)","v":"SUMMA BARN"},{"$f":"SUM(tblUtgiftskategori_03[jan])","v":2373},{"$f":"SUM(tblUtgiftskategori_03[feb])","v":500},{"$f":"SUM(tblUtgiftskategori_03[mar])","v":350},{"$f":"SUM(tblUtgiftskategori_03[apr])","v":250},{"$f":"SUM(tblUtgiftskategori_03[maj])","v":350},{"$f":"SUM(tblUtgiftskategori_03[jun])","v":450},{"$f":"SUM(tblUtgiftskategori_03[jul])","v":200},{"$f":"SUM(tblUtgiftskategori_03[aug])","v":545},{"$f":"SUM(tblUtgiftskategori_03[sep])","v":350},{"$f":"SUM(tblUtgiftskategori_03[okt])","v":350},{"$f":"SUM(tblUtgiftskategori_03[nov])","v":250},{"$f":"SUM(tblUtgiftskategori_03[dec])","v":350},{"$f":"SUM(tblUtgiftskategori_03[år])","v":6318},{"$f":"tblUtgiftskategori_03[[#Totals],[år]]/12","v":{"v":526.5,"d":"527"}}]
[]
[]
[null,"resor"]
[null,"Fordonskostnader",600,600,600,600,600,600,600,600,600,600,600,600,{"$f":"SUM(tblUtgiftskategori_04[[#This Row],[jan]:[dec]])","v":7200},{"$f":"tblUtgiftskategori_04[[#This Row],[år]]/12","v":600}]
[null,"bensin",325,325,325,325,325,500,500,500,325,325,325,325,{"$f":"SUM(tblUtgiftskategori_04[[#This Row],[jan]:[dec]])","v":4425},{"$f":"tblUtgiftskategori_04[[#This Row],[år]]/12","v":{"v":368.75,"d":"369"}}]
[null,"Reparationer",null,100,null,100,null,100,null,100,null,100,null,null,{"$f":"SUM(tblUtgiftskategori_04[[#This Row],[jan]:[dec]])","v":500},{"$f":"tblUtgiftskategori_04[[#This Row],[år]]/12","v":{"v":41.666666666666664,"d":"42"}}]
[null,"trängselskatt",185,{"$nulls":7},225,{"$nulls":3},{"$f":"SUM(tblUtgiftskategori_04[[#This Row],[jan]:[dec]])","v":410},{"$f":"tblUtgiftskategori_04[[#This Row],[år]]/12","v":{"v":34.166666666666664,"d":"34"}}]
[null,"Övrigt",{"$nulls":4},400,{"$nulls":7},{"$f":"SUM(tblUtgiftskategori_04[[#This Row],[jan]:[dec]])","v":400},{"$f":"tblUtgiftskategori_04[[#This Row],[år]]/12","v":{"v":33.333333333333336,"d":"33"}}]
[null,{"$f":"UPPER(\"Summa \" & B48)","v":"SUMMA RESOR"},{"$f":"SUM(tblUtgiftskategori_04[jan])","v":1110},{"$f":"SUM(tblUtgiftskategori_04[feb])","v":1025},{"$f":"SUM(tblUtgiftskategori_04[mar])","v":925},{"$f":"SUM(tblUtgiftskategori_04[apr])","v":1025},{"$f":"SUM(tblUtgiftskategori_04[maj])","v":1325},{"$f":"SUM(tblUtgiftskategori_04[jun])","v":1200},{"$f":"SUM(tblUtgiftskategori_04[jul])","v":1100},{"$f":"SUM(tblUtgiftskategori_04[aug])","v":1200},{"$f":"SUM(tblUtgiftskategori_04[sep])","v":1150},{"$f":"SUM(tblUtgiftskategori_04[okt])","v":1025},{"$f":"SUM(tblUtgiftskategori_04[nov])","v":925},{"$f":"SUM(tblUtgiftskategori_04[dec])","v":925},{"$f":"SUM(tblUtgiftskategori_04[år])","v":12935},{"$f":"tblUtgiftskategori_04[[#Totals],[år]]/12","v":{"v":1077.9166666666667,"d":"1078"}}]
[]
[]
[null,"hälsa"]
[null,"Läkare/tandläkare",null,35,null,null,35,35,35,null,null,35,null,null,{"$f":"SUM(tblUtgiftskategori_05[[#This Row],[jan]:[dec]])","v":175},{"$f":"tblUtgiftskategori_05[[#This Row],[år]]/12","v":{"v":14.583333333333334,"d":"15"}}]
[null,"Läkemedel",25,25,25,25,25,25,25,25,25,25,25,25,{"$f":"SUM(tblUtgiftskategori_05[[#This Row],[jan]:[dec]])","v":300},{"$f":"tblUtgiftskategori_05[[#This Row],[år]]/12","v":25}]
[null,"Övrigt",null,null,150,{"$nulls":5},150,{"$nulls":3},{"$f":"SUM(tblUtgiftskategori_05[[#This Row],[jan]:[dec]])","v":300},{"$f":"tblUtgiftskategori_05[[#This Row],[år]]/12","v":25}]
[null,{"$f":"UPPER(\"Summa \" & B57)","v":"SUMMA HÄLSA"},{"$f":"SUM(tblUtgiftskategori_05[jan])","v":25},{"$f":"SUM(tblUtgiftskategori_05[feb])","v":60},{"$f":"SUM(tblUtgiftskategori_05[mar])","v":175},{"$f":"SUM(tblUtgiftskategori_05[apr])","v":25},{"$f":"SUM(tblUtgiftskategori_05[maj])","v":60},{"$f":"SUM(tblUtgiftskategori_05[jun])","v":60},{"$f":"SUM(tblUtgiftskategori_05[jul])","v":60},{"$f":"SUM(tblUtgiftskategori_05[aug])","v":25},{"$f":"SUM(tblUtgiftskategori_05[sep])","v":175},{"$f":"SUM(tblUtgiftskategori_05[okt])","v":60},{"$f":"SUM(tblUtgiftskategori_05[nov])","v":25},{"$f":"SUM(tblUtgiftskategori_05[dec])","v":25},{"$f":"SUM(tblUtgiftskategori_05[år])","v":775},{"$f":"tblUtgiftskategori_05[[#Totals],[år]]/12","v":{"v":64.58333333333333,"d":"65"}}]
[]
[]
[null,"försäkring"]
[null,"Bil",150,150,150,150,150,150,150,150,150,150,150,150,{"$f":"SUM(tblUtgiftskategori_06[[#This Row],[jan]:[dec]])","v":1800},{"$f":"tblUtgiftskategori_06[[#This Row],[år]]/12","v":150}]
[null,"Hälsa",675,675,675,675,675,675,675,675,675,675,675,675,{"$f":"SUM(tblUtgiftskategori_06[[#This Row],[jan]:[dec]])","v":8100},{"$f":"tblUtgiftskategori_06[[#This Row],[år]]/12","v":675}]
[null,"Liv",150,150,150,150,150,150,150,150,150,150,150,150,{"$f":"SUM(tblUtgiftskategori_06[[#This Row],[jan]:[dec]])","v":1800},{"$f":"tblUtgiftskategori_06[[#This Row],[år]]/12","v":150}]
[null,{"$f":"UPPER(\"Summa \" & B64)","v":"SUMMA FÖRSÄKRING"},{"$f":"SUM(tblUtgiftskategori_06[jan])","v":975},{"$f":"SUM(tblUtgiftskategori_06[feb])","v":975},{"$f":"SUM(tblUtgiftskategori_06[mar])","v":975},{"$f":"SUM(tblUtgiftskategori_06[apr])","v":975},{"$f":"SUM(tblUtgiftskategori_06[maj])","v":975},{"$f":"SUM(tblUtgiftskategori_06[jun])","v":975},{"$f":"SUM(tblUtgiftskategori_06[jul])","v":975},{"$f":"SUM(tblUtgiftskategori_06[aug])","v":975},{"$f":"SUM(tblUtgiftskategori_06[sep])","v":975},{"$f":"SUM(tblUtgiftskategori_06[okt])","v":975},{"$f":"SUM(tblUtgiftskategori_06[nov])","v":975},{"$f":"SUM(tblUtgiftskategori_06[dec])","v":975},{"$f":"SUM(tblUtgiftskategori_06[år])","v":11700},{"$f":"tblUtgiftskategori_06[[#Totals],[år]]/12","v":975}]
[]
[]
[null,"utbildning"]
[null,"avgift",null,null,400,{"$nulls":5},400,{"$nulls":3},{"$f":"SUM(tblUtgiftskategori_07[[#This Row],[jan]:[dec]])","v":800},{"$f":"tblUtgiftskategori_07[[#This Row],[år]]/12","v":{"v":66.66666666666667,"d":"67"}}]
[null,"Böcker",null,null,225,{"$nulls":5},225,{"$nulls":3},{"$f":"SUM(tblUtgiftskategori_07[[#This Row],[jan]:[dec]])","v":450},{"$f":"tblUtgiftskategori_07[[#This Row],[år]]/12","v":{"v":37.5,"d":"38"}}]
[null,"Övrigt",{"$nulls":12},{"$f":"SUM(tblUtgiftskategori_07[[#This Row],[jan]:[dec]])","v":0},{"$f":"tblUtgiftskategori_07[[#This Row],[år]]/12","v":0}]
[null,{"$f":"UPPER(\"Summa \" & B71)","v":"SUMMA UTBILDNING"},{"$f":"SUM(tblUtgiftskategori_07[jan])","v":0},{"$f":"SUM(tblUtgiftskategori_07[feb])","v":0},{"$f":"SUM(tblUtgiftskategori_07[mar])","v":625},{"$f":"SUM(tblUtgiftskategori_07[apr])","v":0},{"$f":"SUM(tblUtgiftskategori_07[maj])","v":0},{"$f":"SUM(tblUtgiftskategori_07[jun])","v":0},{"$f":"SUM(tblUtgiftskategori_07[jul])","v":0},{"$f":"SUM(tblUtgiftskategori_07[aug])","v":0},{"$f":"SUM(tblUtgiftskategori_07[sep])","v":625},{"$f":"SUM(tblUtgiftskategori_07[okt])","v":0},{"$f":"SUM(tblUtgiftskategori_07[nov])","v":0},{"$f":"SUM(tblUtgiftskategori_07[dec])","v":0},{"$f":"SUM(tblUtgiftskategori_07[år])","v":1250},{"$f":"tblUtgiftskategori_07[[#Totals],[år]]/12","v":{"v":104.16666666666667,"d":"104"}}]
[]
[]
[null,"välgörenhet"]
[null,"Presenter",null,100,{"$nulls":3},100,{"$nulls":3},100,null,null,{"$f":"SUM(tblUtgiftskategori_08[[#This Row],[jan]:[dec]])","v":300},{"$f":"tblUtgiftskategori_08[[#This Row],[år]]/12","v":25}]
[null,"Välgörenhet",null,null,100,null,100,null,100,null,100,null,100,null,{"$f":"SUM(tblUtgiftskategori_08[[#This Row],[jan]:[dec]])","v":500},{"$f":"tblUtgiftskategori_08[[#This Row],[år]]/12","v":{"v":41.666666666666664,"d":"42"}}]
[null,"Övrigt",{"$nulls":3},100,{"$nulls":3},100,{"$nulls":3},100,{"$f":"SUM(tblUtgiftskategori_08[[#This Row],[jan]:[dec]])","v":300},{"$f":"tblUtgiftskategori_08[[#This Row],[år]]/12","v":25}]
[null,{"$f":"UPPER(\"Summa \" & B78)","v":"SUMMA VÄLGÖRENHET"},{"$f":"SUM(tblUtgiftskategori_08[jan])","v":0},{"$f":"SUM(tblUtgiftskategori_08[feb])","v":100},{"$f":"SUM(tblUtgiftskategori_08[mar])","v":100},{"$f":"SUM(tblUtgiftskategori_08[apr])","v":100},{"$f":"SUM(tblUtgiftskategori_08[maj])","v":100},{"$f":"SUM(tblUtgiftskategori_08[jun])","v":100},{"$f":"SUM(tblUtgiftskategori_08[jul])","v":100},{"$f":"SUM(tblUtgiftskategori_08[aug])","v":100},{"$f":"SUM(tblUtgiftskategori_08[sep])","v":100},{"$f":"SUM(tblUtgiftskategori_08[okt])","v":100},{"$f":"SUM(tblUtgiftskategori_08[nov])","v":100},{"$f":"SUM(tblUtgiftskategori_08[dec])","v":100},{"$f":"SUM(tblUtgiftskategori_08[år])","v":1100},{"$f":"tblUtgiftskategori_08[[#Totals],[år]]/12","v":{"v":91.66666666666667,"d":"92"}}]
[]
[]
[null,"besparingar"]
[null,"katastroffond",100,100,100,100,100,{"$nulls":3},100,100,100,100,{"$f":"SUM(tblUtgiftskategori_09[[#This Row],[jan]:[dec]])","v":900},{"$f":"tblUtgiftskategori_09[[#This Row],[år]]/12","v":75}]
[null,"Pension (401k, sparkonto)",500,500,500,500,500,500,500,500,500,500,500,500,{"$f":"SUM(tblUtgiftskategori_09[[#This Row],[jan]:[dec]])","v":6000},{"$f":"tblUtgiftskategori_09[[#This Row],[år]]/12","v":500}]
[null,"till sparkonto",200,200,200,200,200,{"$nulls":3},200,200,200,200,{"$f":"SUM(tblUtgiftskategori_09[[#This Row],[jan]:[dec]])","v":1800},{"$f":"tblUtgiftskategori_09[[#This Row],[år]]/12","v":150}]
[null,{"$f":"UPPER(\"Summa \" & B85)","v":"SUMMA BESPARINGAR"},{"$f":"SUM(tblUtgiftskategori_09[jan])","v":800},{"$f":"SUM(tblUtgiftskategori_09[feb])","v":800},{"$f":"SUM(tblUtgiftskategori_09[mar])","v":800},{"$f":"SUM(tblUtgiftskategori_09[apr])","v":800},{"$f":"SUM(tblUtgiftskategori_09[maj])","v":800},{"$f":"SUM(tblUtgiftskategori_09[jun])","v":500},{"$f":"SUM(tblUtgiftskategori_09[jul])","v":500},{"$f":"SUM(tblUtgiftskategori_09[aug])","v":500},{"$f":"SUM(tblUtgiftskategori_09[sep])","v":800},{"$f":"SUM(tblUtgiftskategori_09[okt])","v":800},{"$f":"SUM(tblUtgiftskategori_09[nov])","v":800},{"$f":"SUM(tblUtgiftskategori_09[dec])","v":800},{"$f":"SUM(tblUtgiftskategori_09[år])","v":8700},{"$f":"tblUtgiftskategori_09[[#Totals],[år]]/12","v":725}]
[]
[]
[null,"skulder"]
[null,"Kreditkort 1",145,145,145,145,145,145,145,145,145,145,145,145,{"$f":"SUM(tblUtgiftskategori_10[[#This Row],[jan]:[dec]])","v":1740},{"$f":"tblUtgiftskategori_10[år]/12","v":145}]
[null,"statlig skatt",450,null,null,450,null,null,450,null,null,450,null,null,{"$f":"SUM(tblUtgiftskategori_10[[#This Row],[jan]:[dec]])","v":1800},{"$f":"tblUtgiftskategori_10[år]/12","v":150}]
[null,"Studielån",55,55,55,55,55,55,55,55,55,55,55,55,{"$f":"SUM(tblUtgiftskategori_10[[#This Row],[jan]:[dec]])","v":660},{"$f":"tblUtgiftskategori_10[år]/12","v":55}]
[null,{"$f":"UPPER(\"Summa \" & B92)","v":"SUMMA SKULDER"},{"$f":"SUM(tblUtgiftskategori_10[jan])","v":650},{"$f":"SUM(tblUtgiftskategori_10[feb])","v":200},{"$f":"SUM(tblUtgiftskategori_10[mar])","v":200},{"$f":"SUM(tblUtgiftskategori_10[apr])","v":650},{"$f":"SUM(tblUtgiftskategori_10[maj])","v":200},{"$f":"SUM(tblUtgiftskategori_10[jun])","v":200},{"$f":"SUM(tblUtgiftskategori_10[jul])","v":650},{"$f":"SUM(tblUtgiftskategori_10[aug])","v":200},{"$f":"SUM(tblUtgiftskategori_10[sep])","v":200},{"$f":"SUM(tblUtgiftskategori_10[okt])","v":650},{"$f":"SUM(tblUtgiftskategori_10[nov])","v":200},{"$f":"SUM(tblUtgiftskategori_10[dec])","v":200},{"$f":"SUM(tblUtgiftskategori_10[år])","v":4200},{"$f":"tblUtgiftskategori_10[[#Totals],[år]]/12","v":350}]
[]
[]
[null," "]
[{"$nulls":14},{"$f":"SUM(tblUtgiftskategori_11[[#This Row],[jan]:[dec]])","v":0},{"$f":"tblUtgiftskategori_11[år]/12","v":0}]
[{"$nulls":14},{"$f":"SUM(tblUtgiftskategori_11[[#This Row],[jan]:[dec]])","v":0},{"$f":"tblUtgiftskategori_11[år]/12","v":0}]
[{"$nulls":14},{"$f":"SUM(tblUtgiftskategori_11[[#This Row],[jan]:[dec]])","v":0},{"$f":"tblUtgiftskategori_11[år]/12","v":0}]
[null,{"$f":"UPPER(\"Summa \" & B99)","v":"SUMMA  "},{"$f":"SUM(tblUtgiftskategori_11[jan])","v":0},{"$f":"SUM(tblUtgiftskategori_11[feb])","v":0},{"$f":"SUM(tblUtgiftskategori_11[mar])","v":0},{"$f":"SUM(tblUtgiftskategori_11[apr])","v":0},{"$f":"SUM(tblUtgiftskategori_11[maj])","v":0},{"$f":"SUM(tblUtgiftskategori_11[jun])","v":0},{"$f":"SUM(tblUtgiftskategori_11[jul])","v":0},{"$f":"SUM(tblUtgiftskategori_11[aug])","v":0},{"$f":"SUM(tblUtgiftskategori_11[sep])","v":0},{"$f":"SUM(tblUtgiftskategori_11[okt])","v":0},{"$f":"SUM(tblUtgiftskategori_11[nov])","v":0},{"$f":"SUM(tblUtgiftskategori_11[dec])","v":0},{"$f":"SUM(tblUtgiftskategori_11[år])","v":0},{"$f":"tblUtgiftskategori_11[[#Totals],[år]]/12","v":0}]
[]
[]
[null," "]
[{"$nulls":14},{"$f":"SUM(tblUtgiftskategori_12[[#This Row],[jan]:[dec]])","v":0},{"$f":"tblUtgiftskategori_12[år]/12","v":0}]
[{"$nulls":14},{"$f":"SUM(tblUtgiftskategori_12[[#This Row],[jan]:[dec]])","v":0},{"$f":"tblUtgiftskategori_12[år]/12","v":0}]
[{"$nulls":14},{"$f":"SUM(tblUtgiftskategori_12[[#This Row],[jan]:[dec]])","v":0},{"$f":"tblUtgiftskategori_12[år]/12","v":0}]
[null,{"$f":"UPPER(\"Summa \" & B106)","v":"SUMMA  "},{"$f":"SUM(tblUtgiftskategori_12[jan])","v":0},{"$f":"SUM(tblUtgiftskategori_12[feb])","v":0},{"$f":"SUM(tblUtgiftskategori_12[mar])","v":0},{"$f":"SUM(tblUtgiftskategori_12[apr])","v":0},{"$f":"SUM(tblUtgiftskategori_12[maj])","v":0},{"$f":"SUM(tblUtgiftskategori_12[jun])","v":0},{"$f":"SUM(tblUtgiftskategori_12[jul])","v":0},{"$f":"SUM(tblUtgiftskategori_12[aug])","v":0},{"$f":"SUM(tblUtgiftskategori_12[sep])","v":0},{"$f":"SUM(tblUtgiftskategori_12[okt])","v":0},{"$f":"SUM(tblUtgiftskategori_12[nov])","v":0},{"$f":"SUM(tblUtgiftskategori_12[dec])","v":0},{"$f":"SUM(tblUtgiftskategori_12[år])","v":0},{"$f":"tblUtgiftskategori_12[[#Totals],[år]]/12","v":0}]
[]
[]
[null," "]
[{"$nulls":14},{"$f":"SUM(tblUtgiftskategori_13[[#This Row],[jan]:[dec]])","v":0},{"$f":"tblUtgiftskategori_13[år]/12","v":0}]
[{"$nulls":14},{"$f":"SUM(tblUtgiftskategori_13[[#This Row],[jan]:[dec]])","v":0},{"$f":"tblUtgiftskategori_13[år]/12","v":0}]
[{"$nulls":14},{"$f":"SUM(tblUtgiftskategori_13[[#This Row],[jan]:[dec]])","v":0},{"$f":"tblUtgiftskategori_13[år]/12","v":0}]
[null,{"$f":"UPPER(\"Summa \" & B113)","v":"SUMMA  "},{"$f":"SUM(tblUtgiftskategori_13[jan])","v":0},{"$f":"SUM(tblUtgiftskategori_13[feb])","v":0},{"$f":"SUM(tblUtgiftskategori_13[mar])","v":0},{"$f":"SUM(tblUtgiftskategori_13[apr])","v":0},{"$f":"SUM(tblUtgiftskategori_13[maj])","v":0},{"$f":"SUM(tblUtgiftskategori_13[jun])","v":0},{"$f":"SUM(tblUtgiftskategori_13[jul])","v":0},{"$f":"SUM(tblUtgiftskategori_13[aug])","v":0},{"$f":"SUM(tblUtgiftskategori_13[sep])","v":0},{"$f":"SUM(tblUtgiftskategori_13[okt])","v":0},{"$f":"SUM(tblUtgiftskategori_13[nov])","v":0},{"$f":"SUM(tblUtgiftskategori_13[dec])","v":0},{"$f":"SUM(tblUtgiftskategori_13[år])","v":0},{"$f":"tblUtgiftskategori_13[[#Totals],[år]]/12","v":0}]
[]
[]
[null," "]
[{"$nulls":14},{"$f":"SUM(tblUtgiftskategori_14[[#This Row],[jan]:[dec]])","v":0},{"$f":"tblUtgiftskategori_14[år]/12","v":0}]
[{"$nulls":14},{"$f":"SUM(tblUtgiftskategori_14[[#This Row],[jan]:[dec]])","v":0},{"$f":"tblUtgiftskategori_14[år]/12","v":0}]
[{"$nulls":14},{"$f":"SUM(tblUtgiftskategori_14[[#This Row],[jan]:[dec]])","v":0},{"$f":"tblUtgiftskategori_14[år]/12","v":0}]
[null,{"$f":"UPPER(\"Summa \" & B120)","v":"SUMMA  "},{"$f":"SUM(tblUtgiftskategori_14[jan])","v":0},{"$f":"SUM(tblUtgiftskategori_14[feb])","v":0},{"$f":"SUM(tblUtgiftskategori_14[mar])","v":0},{"$f":"SUM(tblUtgiftskategori_14[apr])","v":0},{"$f":"SUM(tblUtgiftskategori_14[maj])","v":0},{"$f":"SUM(tblUtgiftskategori_14[jun])","v":0},{"$f":"SUM(tblUtgiftskategori_14[jul])","v":0},{"$f":"SUM(tblUtgiftskategori_14[aug])","v":0},{"$f":"SUM(tblUtgiftskategori_14[sep])","v":0},{"$f":"SUM(tblUtgiftskategori_14[okt])","v":0},{"$f":"SUM(tblUtgiftskategori_14[nov])","v":0},{"$f":"SUM(tblUtgiftskategori_14[dec])","v":0},{"$f":"SUM(tblUtgiftskategori_14[år])","v":0},{"$f":"tblUtgiftskategori_14[[#Totals],[år]]/12","v":0}]
[]
[]
[null," "]
[{"$nulls":14},{"$f":"SUM(tblUtgiftskategori_15[[#This Row],[jan]:[dec]])","v":0},{"$f":"tblUtgiftskategori_15[år]/12","v":0}]
[{"$nulls":14},{"$f":"SUM(tblUtgiftskategori_15[[#This Row],[jan]:[dec]])","v":0},{"$f":"tblUtgiftskategori_15[år]/12","v":0}]
[{"$nulls":14},{"$f":"SUM(tblUtgiftskategori_15[[#This Row],[jan]:[dec]])","v":0},{"$f":"tblUtgiftskategori_15[år]/12","v":0}]
[null,{"$f":"UPPER(\"Summa \" & B127)","v":"SUMMA  "},{"$f":"SUM(tblUtgiftskategori_15[jan])","v":0},{"$f":"SUM(tblUtgiftskategori_15[feb])","v":0},{"$f":"SUM(tblUtgiftskategori_15[mar])","v":0},{"$f":"SUM(tblUtgiftskategori_15[apr])","v":0},{"$f":"SUM(tblUtgiftskategori_15[maj])","v":0},{"$f":"SUM(tblUtgiftskategori_15[jun])","v":0},{"$f":"SUM(tblUtgiftskategori_15[jul])","v":0},{"$f":"SUM(tblUtgiftskategori_15[aug])","v":0},{"$f":"SUM(tblUtgiftskategori_15[sep])","v":0},{"$f":"SUM(tblUtgiftskategori_15[okt])","v":0},{"$f":"SUM(tblUtgiftskategori_15[nov])","v":0},{"$f":"SUM(tblUtgiftskategori_15[dec])","v":0},{"$f":"SUM(tblUtgiftskategori_15[år])","v":0},{"$f":"tblUtgiftskategori_15[[#Totals],[år]]/12","v":0}]

{"sheet":"Installation","index":2,"n_rows":59,"n_cols":10,"rows_kept":59}
[null,"FAMILJEN JOHANSSON 2012"]
[null,"inkomst",null,"utgifter"]
[null,"löner",null," "]
[null,"ränteintäkter",null,"hushåll",null,"hushåll",null,"vardag",null,"barn"]
[null,"utdelningar",null,"vardag",null,"lån/hyra",null,"matvaror",null,"läkemedel"]
[null,"gåvor",null,"barn",null,"el",null,"personliga ägodelar",null,"kläder"]
[null,"bidrag/ersättning",null,"resor",null,"gas/olja",null,"kläder",null,"skolavgifter"]
[null,"Besparingsöverföringar",null,"hälsa",null,"vatten/avlopp/avfall",null,"städning",null,"skollunch"]
[null,"övrigt",null,"försäkring",null,"telefon",null,"middag/äta ute",null,"skolmaterial"]
[{"$nulls":3},"utbildning",null,"kabel/satellit",null,"kemtvätt",null,"barnpassning"]
[{"$nulls":3},"välgörenhet",null,"Internet",null,"frisör",null,"leksaker/spel"]
[{"$nulls":3},"besparingar",null,"möbler/hushållsapparater",null,"övrigt",null,"övrigt"]
[{"$nulls":3},"skulder",null,"gräsmatta/trädgård"]
[{"$nulls":3},"nöjen",null,"tillbehör"]
[{"$nulls":3},"husdjur",null,"underhåll"]
[{"$nulls":3},"prenumerationer",null,"renoveringar"]
[{"$nulls":3},"semester",null,"övrigt"]
[{"$nulls":3},"övrigt"]
[]
[{"$nulls":5},"resor",null,"hälsa",null,"försäkring"]
[{"$nulls":5},"fordonskostnader",null,"läkare/tandläkare",null,"bil"]
[{"$nulls":5},"bensin",null,"läkemedel",null,"hälsa"]
[{"$nulls":5},"kollektivtrafik",null,"medlemsavgifter",null,"hem"]
[{"$nulls":5},"reparationer",null,"akutvård",null,"liv"]
[{"$nulls":5},"trängselskatt",null,"övrigt",null,"övrigt"]
[{"$nulls":5},"övrigt"]
[]
[]
[{"$nulls":5},"utbildning",null,"välgörenhet",null,"besparingar"]
[{"$nulls":5},"avgift",null,"presenter",null,"katastroffond"]
[{"$nulls":5},"böcker",null,"välgörenhet",null,"till sparkonto"]
[{"$nulls":5},"musiklektioner",null,"religiös välgörenhet",null,"pension (401k, sparkonto)"]
[{"$nulls":5},"övrigt",null,"övrigt",null,"investeringar"]
[{"$nulls":9},"högskola"]
[{"$nulls":9},"övrigt"]
[]
[]
[{"$nulls":5},"skulder",null,"nöjen",null,"husdjur"]
[{"$nulls":5},"studielån",null,"film",null,"mat"]
[{"$nulls":5},"övriga lån",null,"musik",null,"läkemedel"]
[{"$nulls":5},"kreditkort 1",null,"spel",null,"leksaker/tillbehör"]
[{"$nulls":5},"kreditkort 2",null,"hyrfilm",null,"övrigt"]
[{"$nulls":5},"kreditkort 3",null,"bio/teater"]
[{"$nulls":5},"barnbidrag",null,"konserter"]
[{"$nulls":5},"statlig skatt",null,"böcker"]
[{"$nulls":5},"fastighetsskatt",null,"hobby"]
[{"$nulls":5},"kommunalskatt",null,"film/foto"]
[{"$nulls":5},"samfällighetsavgifter",null,"sport"]
[{"$nulls":5},"juridiska kostnader",null,"friluftsliv"]
[{"$nulls":5},"övrigt",null,"leksaker/prylar"]
[{"$nulls":7},"övrigt"]
[]
[{"$nulls":5},"prenumerationer",null,"semester",null,"övrigt"]
[{"$nulls":5},"tidningar",null,"resor",null,"bankavgifter"]
[{"$nulls":5},"tidskrifter",null,"logi",null,"porto"]
[{"$nulls":5},"medlemsavgifter",null,"mat",null,"övrigt"]
[{"$nulls":5},"klubbmedlemskap",null,"hyrbil"]
[{"$nulls":5},"övrigt",null,"nöjen"]
[{"$nulls":7},"övrigt"]

{"sheet":"diagramdata","index":3,"n_rows":40,"n_cols":16,"rows_kept":40,"hidden":true}
[null,"*** Det här bladet ska vara dolt ***"]
[]
[]
[null,"Period",3]
[]
[null,null,"jan","feb","mar","apr","maj","jun","jul","aug","sep","okt","nov","dec","år","Medel"]
[null,{"$f":"LOWER(Budget!B127)","v":" "},{"$f":"SUM(tblUtgiftskategori_15[jan])","v":0},{"$f":"SUM(tblUtgiftskategori_15[feb])","v":0},{"$f":"SUM(tblUtgiftskategori_15[mar])","v":0},{"$f":"SUM(tblUtgiftskategori_15[apr])","v":0},{"$f":"SUM(tblUtgiftskategori_15[maj])","v":0},{"$f":"SUM(tblUtgiftskategori_15[jun])","v":0},{"$f":"SUM(tblUtgiftskategori_15[jul])","v":0},{"$f":"SUM(tblUtgiftskategori_15[aug])","v":0},{"$f":"SUM(tblUtgiftskategori_15[sep])","v":0},{"$f":"SUM(tblUtgiftskategori_15[okt])","v":0},{"$f":"SUM(tblUtgiftskategori_15[nov])","v":0},{"$f":"SUM(tblUtgiftskategori_15[dec])","v":0},{"$f":"SUM(tblUtgiftskategori_15[år])","v":0},{"$f":"SUM(tblUtgiftskategori_15[medel])","v":0}]
[null,{"$f":"LOWER(Budget!B120)","v":" "},{"$f":"SUM(tblUtgiftskategori_14[jan])","v":0},{"$f":"SUM(tblUtgiftskategori_14[feb])","v":0},{"$f":"SUM(tblUtgiftskategori_14[mar])","v":0},{"$f":"SUM(tblUtgiftskategori_14[apr])","v":0},{"$f":"SUM(tblUtgiftskategori_14[maj])","v":0},{"$f":"SUM(tblUtgiftskategori_14[jun])","v":0},{"$f":"SUM(tblUtgiftskategori_14[jul])","v":0},{"$f":"SUM(tblUtgiftskategori_14[aug])","v":0},{"$f":"SUM(tblUtgiftskategori_14[sep])","v":0},{"$f":"SUM(tblUtgiftskategori_14[okt])","v":0},{"$f":"SUM(tblUtgiftskategori_14[nov])","v":0},{"$f":"SUM(tblUtgiftskategori_14[dec])","v":0},{"$f":"SUM(tblUtgiftskategori_14[år])","v":0},{"$f":"SUM(tblUtgiftskategori_14[medel])","v":0}]
[null,{"$f":"LOWER(Budget!B113)","v":" "},{"$f":"SUM(tblUtgiftskategori_13[jan])","v":0},{"$f":"SUM(tblUtgiftskategori_13[feb])","v":0},{"$f":"SUM(tblUtgiftskategori_13[mar])","v":0},{"$f":"SUM(tblUtgiftskategori_13[apr])","v":0},{"$f":"SUM(tblUtgiftskategori_13[maj])","v":0},{"$f":"SUM(tblUtgiftskategori_13[jun])","v":0},{"$f":"SUM(tblUtgiftskategori_13[jul])","v":0},{"$f":"SUM(tblUtgiftskategori_13[aug])","v":0},{"$f":"SUM(tblUtgiftskategori_13[sep])","v":0},{"$f":"SUM(tblUtgiftskategori_13[okt])","v":0},{"$f":"SUM(tblUtgiftskategori_13[nov])","v":0},{"$f":"SUM(tblUtgiftskategori_13[dec])","v":0},{"$f":"SUM(tblUtgiftskategori_13[år])","v":0},{"$f":"SUM(tblUtgiftskategori_13[medel])","v":0}]
[null,{"$f":"LOWER(Budget!B106)","v":" "},{"$f":"SUM(tblUtgiftskategori_12[jan])","v":0},{"$f":"SUM(tblUtgiftskategori_12[feb])","v":0},{"$f":"SUM(tblUtgiftskategori_12[mar])","v":0},{"$f":"SUM(tblUtgiftskategori_12[apr])","v":0},{"$f":"SUM(tblUtgiftskategori_12[maj])","v":0},{"$f":"SUM(tblUtgiftskategori_12[jun])","v":0},{"$f":"SUM(tblUtgiftskategori_12[jul])","v":0},{"$f":"SUM(tblUtgiftskategori_12[aug])","v":0},{"$f":"SUM(tblUtgiftskategori_12[sep])","v":0},{"$f":"SUM(tblUtgiftskategori_12[okt])","v":0},{"$f":"SUM(tblUtgiftskategori_12[nov])","v":0},{"$f":"SUM(tblUtgiftskategori_12[dec])","v":0},{"$f":"SUM(tblUtgiftskategori_12[år])","v":0},{"$f":"SUM(tblUtgiftskategori_12[medel])","v":0}]
[null,{"$f":"LOWER(Budget!B99)","v":" "},{"$f":"SUM(tblUtgiftskategori_11[jan])","v":0},{"$f":"SUM(tblUtgiftskategori_11[feb])","v":0},{"$f":"SUM(tblUtgiftskategori_11[mar])","v":0},{"$f":"SUM(tblUtgiftskategori_11[apr])","v":0},{"$f":"SUM(tblUtgiftskategori_11[maj])","v":0},{"$f":"SUM(tblUtgiftskategori_11[jun])","v":0},{"$f":"SUM(tblUtgiftskategori_11[jul])","v":0},{"$f":"SUM(tblUtgiftskategori_11[aug])","v":0},{"$f":"SUM(tblUtgiftskategori_11[sep])","v":0},{"$f":"SUM(tblUtgiftskategori_11[okt])","v":0},{"$f":"SUM(tblUtgiftskategori_11[nov])","v":0},{"$f":"SUM(tblUtgiftskategori_11[dec])","v":0},{"$f":"SUM(tblUtgiftskategori_11[år])","v":0},{"$f":"SUM(tblUtgiftskategori_11[medel])","v":0}]
[null,{"$f":"LOWER(Budget!B92)","v":"skulder"},{"$f":"SUM(tblUtgiftskategori_10[jan])","v":650},{"$f":"SUM(tblUtgiftskategori_10[feb])","v":200},{"$f":"SUM(tblUtgiftskategori_10[mar])","v":200},{"$f":"SUM(tblUtgiftskategori_10[apr])","v":650},{"$f":"SUM(tblUtgiftskategori_10[maj])","v":200},{"$f":"SUM(tblUtgiftskategori_10[jun])","v":200},{"$f":"SUM(tblUtgiftskategori_10[jul])","v":650},{"$f":"SUM(tblUtgiftskategori_10[aug])","v":200},{"$f":"SUM(tblUtgiftskategori_10[sep])","v":200},{"$f":"SUM(tblUtgiftskategori_10[okt])","v":650},{"$f":"SUM(tblUtgiftskategori_10[nov])","v":200},{"$f":"SUM(tblUtgiftskategori_10[dec])","v":200},{"$f":"SUM(tblUtgiftskategori_10[år])","v":{"v":4200,"d":"4,200"}},{"$f":"SUM(tblUtgiftskategori_10[medel])","v":350}]
[null,{"$f":"LOWER(Budget!B85)","v":"besparingar"},{"$f":"SUM(tblUtgiftskategori_09[jan])","v":800},{"$f":"SUM(tblUtgiftskategori_09[feb])","v":800},{"$f":"SUM(tblUtgiftskategori_09[mar])","v":800},{"$f":"SUM(tblUtgiftskategori_09[apr])","v":800},{"$f":"SUM(tblUtgiftskategori_09[maj])","v":800},{"$f":"SUM(tblUtgiftskategori_09[jun])","v":500},{"$f":"SUM(tblUtgiftskategori_09[jul])","v":500},{"$f":"SUM(tblUtgiftskategori_09[aug])","v":500},{"$f":"SUM(tblUtgiftskategori_09[sep])","v":800},{"$f":"SUM(tblUtgiftskategori_09[okt])","v":800},{"$f":"SUM(tblUtgiftskategori_09[nov])","v":800},{"$f":"SUM(tblUtgiftskategori_09[dec])","v":800},{"$f":"SUM(tblUtgiftskategori_09[år])","v":{"v":8700,"d":"8,700"}},{"$f":"SUM(tblUtgiftskategori_09[medel])","v":725}]
[null,{"$f":"LOWER(Budget!B78)","v":"välgörenhet"},{"$f":"SUM(tblUtgiftskategori_08[jan])","v":0},{"$f":"SUM(tblUtgiftskategori_08[feb])","v":100},{"$f":"SUM(tblUtgiftskategori_08[mar])","v":100},{"$f":"SUM(tblUtgiftskategori_08[apr])","v":100},{"$f":"SUM(tblUtgiftskategori_08[maj])","v":100},{"$f":"SUM(tblUtgiftskategori_08[jun])","v":100},{"$f":"SUM(tblUtgiftskategori_08[jul])","v":100},{"$f":"SUM(tblUtgiftskategori_08[aug])","v":100},{"$f":"SUM(tblUtgiftskategori_08[sep])","v":100},{"$f":"SUM(tblUtgiftskategori_08[okt])","v":100},{"$f":"SUM(tblUtgiftskategori_08[nov])","v":100},{"$f":"SUM(tblUtgiftskategori_08[dec])","v":100},{"$f":"SUM(tblUtgiftskategori_08[år])","v":{"v":1100,"d":"1,100"}},{"$f":"SUM(tblUtgiftskategori_08[medel])","v":{"v":91.66666666666666,"d":"92"}}]
[null,{"$f":"LOWER(Budget!B71)","v":"utbildning"},{"$f":"SUM(tblUtgiftskategori_07[jan])","v":0},{"$f":"SUM(tblUtgiftskategori_07[feb])","v":0},{"$f":"SUM(tblUtgiftskategori_07[mar])","v":625},{"$f":"SUM(tblUtgiftskategori_07[apr])","v":0},{"$f":"SUM(tblUtgiftskategori_07[maj])","v":0},{"$f":"SUM(tblUtgiftskategori_07[jun])","v":0},{"$f":"SUM(tblUtgiftskategori_07[jul])","v":0},{"$f":"SUM(tblUtgiftskategori_07[aug])","v":0},{"$f":"SUM(tblUtgiftskategori_07[sep])","v":625},{"$f":"SUM(tblUtgiftskategori_07[okt])","v":0},{"$f":"SUM(tblUtgiftskategori_07[nov])","v":0},{"$f":"SUM(tblUtgiftskategori_07[dec])","v":0},{"$f":"SUM(tblUtgiftskategori_07[år])","v":{"v":1250,"d":"1,250"}},{"$f":"SUM(tblUtgiftskategori_07[medel])","v":{"v":104.16666666666667,"d":"104"}}]
[null,{"$f":"LOWER(Budget!B64)","v":"försäkring"},{"$f":"SUM(tblUtgiftskategori_06[jan])","v":975},{"$f":"SUM(tblUtgiftskategori_06[feb])","v":975},{"$f":"SUM(tblUtgiftskategori_06[mar])","v":975},{"$f":"SUM(tblUtgiftskategori_06[apr])","v":975},{"$f":"SUM(tblUtgiftskategori_06[maj])","v":975},{"$f":"SUM(tblUtgiftskategori_06[jun])","v":975},{"$f":"SUM(tblUtgiftskategori_06[jul])","v":975},{"$f":"SUM(tblUtgiftskategori_06[aug])","v":975},{"$f":"SUM(tblUtgiftskategori_06[sep])","v":975},{"$f":"SUM(tblUtgiftskategori_06[okt])","v":975},{"$f":"SUM(tblUtgiftskategori_06[nov])","v":975},{"$f":"SUM(tblUtgiftskategori_06[dec])","v":975},{"$f":"SUM(tblUtgiftskategori_06[år])","v":{"v":11700,"d":"11,700"}},{"$f":"SUM(tblUtgiftskategori_06[medel])","v":975}]
[null,{"$f":"LOWER(Budget!B57)","v":"hälsa"},{"$f":"SUM(tblUtgiftskategori_05[jan])","v":25},{"$f":"SUM(tblUtgiftskategori_05[feb])","v":60},{"$f":"SUM(tblUtgiftskategori_05[mar])","v":175},{"$f":"SUM(tblUtgiftskategori_05[apr])","v":25},{"$f":"SUM(tblUtgiftskategori_05[maj])","v":60},{"$f":"SUM(tblUtgiftskategori_05[jun])","v":60},{"$f":"SUM(tblUtgiftskategori_05[jul])","v":60},{"$f":"SUM(tblUtgiftskategori_05[aug])","v":25},{"$f":"SUM(tblUtgiftskategori_05[sep])","v":175},{"$f":"SUM(tblUtgiftskategori_05[okt])","v":60},{"$f":"SUM(tblUtgiftskategori_05[nov])","v":25},{"$f":"SUM(tblUtgiftskategori_05[dec])","v":25},{"$f":"SUM(tblUtgiftskategori_05[år])","v":775},{"$f":"SUM(tblUtgiftskategori_05[medel])","v":{"v":64.58333333333334,"d":"65"}}]
[null,{"$f":"LOWER(Budget!B48)","v":"resor"},{"$f":"SUM(tblUtgiftskategori_04[jan])","v":{"v":1110,"d":"1,110"}},{"$f":"SUM(tblUtgiftskategori_04[feb])","v":{"v":1025,"d":"1,025"}},{"$f":"SUM(tblUtgiftskategori_04[mar])","v":925},{"$f":"SUM(tblUtgiftskategori_04[apr])","v":{"v":1025,"d":"1,025"}},{"$f":"SUM(tblUtgiftskategori_04[maj])","v":{"v":1325,"d":"1,325"}},{"$f":"SUM(tblUtgiftskategori_04[jun])","v":{"v":1200,"d":"1,200"}},{"$f":"SUM(tblUtgiftskategori_04[jul])","v":{"v":1100,"d":"1,100"}},{"$f":"SUM(tblUtgiftskategori_04[aug])","v":{"v":1200,"d":"1,200"}},{"$f":"SUM(tblUtgiftskategori_04[sep])","v":{"v":1150,"d":"1,150"}},{"$f":"SUM(tblUtgiftskategori_04[okt])","v":{"v":1025,"d":"1,025"}},{"$f":"SUM(tblUtgiftskategori_04[nov])","v":925},{"$f":"SUM(tblUtgiftskategori_04[dec])","v":925},{"$f":"SUM(tblUtgiftskategori_04[år])","v":{"v":12935,"d":"12,935"}},{"$f":"SUM(tblUtgiftskategori_04[medel])","v":{"v":1077.9166666666665,"d":"1,078"}}]
[null,{"$f":"LOWER(Budget!B39)","v":"barn"},{"$f":"SUM(tblUtgiftskategori_03[jan])","v":{"v":2373,"d":"2,373"}},{"$f":"SUM(tblUtgiftskategori_03[feb])","v":500},{"$f":"SUM(tblUtgiftskategori_03[mar])","v":350},{"$f":"SUM(tblUtgiftskategori_03[apr])","v":250},{"$f":"SUM(tblUtgiftskategori_03[maj])","v":350},{"$f":"SUM(tblUtgiftskategori_03[jun])","v":450},{"$f":"SUM(tblUtgiftskategori_03[jul])","v":200},{"$f":"SUM(tblUtgiftskategori_03[aug])","v":545},{"$f":"SUM(tblUtgiftskategori_03[sep])","v":350},{"$f":"SUM(tblUtgiftskategori_03[okt])","v":350},{"$f":"SUM(tblUtgiftskategori_03[nov])","v":250},{"$f":"SUM(tblUtgiftskategori_03[dec])","v":350},{"$f":"SUM(tblUtgiftskategori_03[år])","v":{"v":6318,"d":"6,318"}},{"$f":"SUM(tblUtgiftskategori_03[medel])","v":{"v":526.5,"d":"527"}}]
[null,{"$f":"LOWER(Budget!B30)","v":"vardag"},{"$f":"SUM(tblUtgiftskategori_02[jan])","v":795},{"$f":"SUM(tblUtgiftskategori_02[feb])","v":375},{"$f":"SUM(tblUtgiftskategori_02[mar])","v":550},{"$f":"SUM(tblUtgiftskategori_02[apr])","v":825},{"$f":"SUM(tblUtgiftskategori_02[maj])","v":500},{"$f":"SUM(tblUtgiftskategori_02[jun])","v":450},{"$f":"SUM(tblUtgiftskategori_02[jul])","v":875},{"$f":"SUM(tblUtgiftskategori_02[aug])","v":475},{"$f":"SUM(tblUtgiftskategori_02[sep])","v":400},{"$f":"SUM(tblUtgiftskategori_02[okt])","v":825},{"$f":"SUM(tblUtgiftskategori_02[nov])","v":575},{"$f":"SUM(tblUtgiftskategori_02[dec])","v":375},{"$f":"SUM(tblUtgiftskategori_02[år])","v":{"v":7020,"d":"7,020"}},{"$f":"SUM(tblUtgiftskategori_02[medel])","v":585}]
[null,{"$f":"LOWER(Budget!B21)","v":"hushåll"},{"$f":"SUM(tblUtgiftskategori_01[jan])","v":{"v":1208,"d":"1,208"}},{"$f":"SUM(tblUtgiftskategori_01[feb])","v":{"v":1208,"d":"1,208"}},{"$f":"SUM(tblUtgiftskategori_01[mar])","v":{"v":1233,"d":"1,233"}},{"$f":"SUM(tblUtgiftskategori_01[apr])","v":{"v":1208,"d":"1,208"}},{"$f":"SUM(tblUtgiftskategori_01[maj])","v":{"v":1158,"d":"1,158"}},{"$f":"SUM(tblUtgiftskategori_01[jun])","v":{"v":1183,"d":"1,183"}},{"$f":"SUM(tblUtgiftskategori_01[jul])","v":{"v":1283,"d":"1,283"}},{"$f":"SUM(tblUtgiftskategori_01[aug])","v":{"v":1333,"d":"1,333"}},{"$f":"SUM(tblUtgiftskategori_01[sep])","v":{"v":1208,"d":"1,208"}},{"$f":"SUM(tblUtgiftskategori_01[okt])","v":{"v":1158,"d":"1,158"}},{"$f":"SUM(tblUtgiftskategori_01[nov])","v":{"v":1208,"d":"1,208"}},{"$f":"SUM(tblUtgiftskategori_01[dec])","v":{"v":1208,"d":"1,208"}},{"$f":"SUM(tblUtgiftskategori_01[år])","v":{"v":14596,"d":"14,596"}},{"$f":"SUM(tblUtgiftskategori_01[medel])","v":{"v":1216.3333333333335,"d":"1,216"}}]
[]
[]
[]
[]
[null,"Ackulmulerat kassaflöde",{"$f":"SUM(Budget!$C$8:C$8)","v":{"v":-3714,"d":"-3,714"}},{"$f":"SUM(Budget!$C$8:D$8)","v":76},{"$f":"SUM(Budget!$C$8:E$8)","v":{"v":-1857,"d":"-1,857"}},{"$f":"SUM(Budget!$C$8:F$8)","v":{"v":-3670,"d":"-3,670"}},{"$f":"SUM(Budget!$C$8:G$8)","v":-138},{"$f":"SUM(Budget!$C$8:H$8)","v":{"v":-3731,"d":"-3,731"}},{"$f":"SUM(Budget!$C$8:I$8)","v":{"v":-7974,"d":"-7,974"}},{"$f":"SUM(Budget!$C$8:J$8)","v":{"v":-6827,"d":"-6,827"}},{"$f":"SUM(Budget!$C$8:K$8)","v":{"v":-8810,"d":"-8,810"}},{"$f":"SUM(Budget!$C$8:L$8)","v":{"v":-10753,"d":"-10,753"}},{"$f":"SUM(Budget!$C$8:M$8)","v":{"v":-6811,"d":"-6,811"}},{"$f":"SUM(Budget!$C$8:N$8)","v":{"v":-7769,"d":"-7,769"}},{"$f":"SUM(Budget!$C$8:O$8)","v":{"v":-15538,"d":"-15,538"}}]
[]
[null,"Årets kassaflöde, plus",{"$f":"IF(Budget!C$8<0,NA(),IF(period+2<>COLUMN(Budget!C$8),NA(),Budget!C$8))","v":{"$error":"#N/A"}},{"$f":"IF(Budget!D$8<0,NA(),IF(period+2<>COLUMN(Budget!D$8),NA(),Budget!D$8))","v":{"$error":"#N/A"}},{"$f":"IF(Budget!E$8<0,NA(),IF(period+2<>COLUMN(Budget!E$8),NA(),Budget!E$8))","v":{"$error":"#N/A"}},{"$f":"IF(Budget!F$8<0,NA(),IF(period+2<>COLUMN(Budget!F$8),NA(),Budget!F$8))","v":{"$error":"#N/A"}},{"$f":"IF(Budget!G$8<0,NA(),IF(period+2<>COLUMN(Budget!G$8),NA(),Budget!G$8))","v":{"$error":"#N/A"}},{"$f":"IF(Budget!H$8<0,NA(),IF(period+2<>COLUMN(Budget!H$8),NA(),Budget!H$8))","v":{"$error":"#N/A"}},{"$f":"IF(Budget!I$8<0,NA(),IF(period+2<>COLUMN(Budget!I$8),NA(),Budget!I$8))","v":{"$error":"#N/A"}},{"$f":"IF(Budget!J$8<0,NA(),IF(period+2<>COLUMN(Budget!J$8),NA(),Budget!J$8))","v":{"$error":"#N/A"}},{"$f":"IF(Budget!K$8<0,NA(),IF(period+2<>COLUMN(Budget!K$8),NA(),Budget!K$8))","v":{"$error":"#N/A"}},{"$f":"IF(Budget!L$8<0,NA(),IF(period+2<>COLUMN(Budget!L$8),NA(),Budget!L$8))","v":{"$error":"#N/A"}},{"$f":"IF(Budget!M$8<0,NA(),IF(period+2<>COLUMN(Budget!M$8),NA(),Budget!M$8))","v":{"$error":"#N/A"}},{"$f":"IF(Budget!N$8<0,NA(),IF(period+2<>COLUMN(Budget!N$8),NA(),Budget!N$8))","v":{"$error":"#N/A"}},{"$f":"IF(Budget!O$8<0,NA(),IF(period+2<>COLUMN(Budget!O$8),NA(),Budget!O$8))","v":{"$error":"#N/A"}}]
[null,"Årets kassaflöde, minus",{"$f":"IF(Budget!C$8>=0,NA(),IF(period+2<>COLUMN(Budget!C$8),NA(),Budget!C$8))","v":{"$error":"#N/A"}},{"$f":"IF(Budget!D$8>=0,NA(),IF(period+2<>COLUMN(Budget!D$8),NA(),Budget!D$8))","v":{"$error":"#N/A"}},{"$f":"IF(Budget!E$8>=0,NA(),IF(period+2<>COLUMN(Budget!E$8),NA(),Budget!E$8))","v":{"v":-1933,"d":"-1,933"}},{"$f":"IF(Budget!F$8>=0,NA(),IF(period+2<>COLUMN(Budget!F$8),NA(),Budget!F$8))","v":{"$error":"#N/A"}},{"$f":"IF(Budget!G$8>=0,NA(),IF(period+2<>COLUMN(Budget!G$8),NA(),Budget!G$8))","v":{"$error":"#N/A"}},{"$f":"IF(Budget!H$8>=0,NA(),IF(period+2<>COLUMN(Budget!H$8),NA(),Budget!H$8))","v":{"$error":"#N/A"}},{"$f":"IF(Budget!I$8>=0,NA(),IF(period+2<>COLUMN(Budget!I$8),NA(),Budget!I$8))","v":{"$error":"#N/A"}},{"$f":"IF(Budget!J$8>=0,NA(),IF(period+2<>COLUMN(Budget!J$8),NA(),Budget!J$8))","v":{"$error":"#N/A"}},{"$f":"IF(Budget!K$8>=0,NA(),IF(period+2<>COLUMN(Budget!K$8),NA(),Budget!K$8))","v":{"$error":"#N/A"}},{"$f":"IF(Budget!L$8>=0,NA(),IF(period+2<>COLUMN(Budget!L$8),NA(),Budget!L$8))","v":{"$error":"#N/A"}},{"$f":"IF(Budget!M$8>=0,NA(),IF(period+2<>COLUMN(Budget!M$8),NA(),Budget!M$8))","v":{"$error":"#N/A"}},{"$f":"IF(Budget!N$8>=0,NA(),IF(period+2<>COLUMN(Budget!N$8),NA(),Budget!N$8))","v":{"$error":"#N/A"}},{"$f":"IF(Budget!O$8>=0,NA(),IF(period+2<>COLUMN(Budget!O$8),NA(),Budget!O$8))","v":{"$error":"#N/A"}}]
{"$rows_empty":7}
[null,{"$f":"LOWER(visa_lång_period)","v":"mars"}]
[null,{"$f":" \"Inkomst i \"&visa_lång_period","v":"Inkomst i mars"},{"$f":"INDEX(Budget!$C$6:$P$6,,period)","v":{"v":4000,"d":"4,000 kr"}}]
[null,{"$f":"\"Utgifter i \" & visa_lång_period & \": \" & TEXT(INDEX(Budget!$C$7:$P$7,,period),\"# ##0 kr\")","v":"Utgifter i mars: 5 933 kr"},{"$f":"INDEX(Budget!$C$7:$P$7,,period)","v":{"v":5933,"d":"5,933 kr"}}]
[null,{"$f":" \"Kassaflöde i\" &visa_lång_period","v":"Kassaflöde imars"},{"$f":"ABS(INDEX(Budget!$C$8:$P$8,,period))","v":{"v":1933,"d":"1,933 kr"}},{"$f":"REPT(\"-\",INDEX(Budget!$C$8:$P$8,,period)<0)","v":"-"}]